bitfinex/quotes_ETHUSD_20250331
["timestamp","ask_amount","ask_price","bid_price","bid_amount"]
[1743439983374,3.0,1845.9,1845.7,5.274]
[1743439983603,8.41745,1845.9,1845.7,5.274]
[1743439984297,4.51931909,1845.8,1845.7,5.274]
[1743439984518,4.51931909,1845.9,1845.7,5.274]
[1743439984699,4.51931909,1845.9,1845.8,5.41749]
[1743439985277,4.51931909,1845.9,1845.7,10.69195]
[1743439985478,4.51931909,1845.9,1845.7,5.274]
[1743439985683,18.35442909,1845.9,1845.7,5.274]
[1743439986008,3.0,1845.8,1845.7,5.274]
[1743439986310,3.0,1845.8,1845.7,5.41066451]
[1743439986804,9.79048391,1845.8,1845.7,5.41066451]
[1743439987004,10.18730026,1845.8,1845.7,5.41066451]
[1743439989089,13.07474026,1845.8,1845.7,0.13666451]
[1743439989402,10.18730026,1845.8,1845.5,36.502]
[1743439989601,7.51931909,1845.6,1845.5,41.92044]
[1743439990213,7.51931909,1845.6,1845.5,36.502]
[1743439990416,7.51931909,1845.6,1845.5,41.92058]
[1743439991016,3.0,1845.6,1845.5,42.69078]
[1743439991705,3.0,1845.6,1845.5,36.502]
[1743439992324,3.0,1845.6,1845.5,41.92058]
[1743439993301,3.0,1845.6,1845.5,46.732299]
[1743439993681,3.0,1845.6,1845.5,31.227]
[1743439994524,3.0,1845.6,1845.5,37.46508]
[1743439995088,6.22477,1846.3,1845.9,5.41727]
[1743439995309,4.51931909,1846.0,1845.8,6.23715]
[1743439995513,4.51931909,1846.0,1845.9,10.69241]
[1743439995784,7.51931909,1846.0,1845.9,10.69241]
[1743439996201,4.51931909,1846.0,1845.9,12.385356]
[1743439997034,4.51931909,1846.0,1845.8,5.41755]
[1743439997220,4.51931909,1846.0,1845.9,5.275]
[1743439999111,4.51931909,1846.0,1845.8,5.41755]
[1743439999327,4.51931909,1846.0,1845.9,5.275]
[1743439999700,12.93642909,1846.0,1845.7,10.69298]
[1743439999932,7.51931909,1845.8,1845.7,5.275]
[1743440000294,7.51931909,1845.8,1845.5,37.47518]
[1743440000491,12.03863818,1845.6,1845.5,36.502]
[1743440000796,7.51931909,1845.6,1845.5,36.502]
[1743440002794,7.51931909,1845.6,1845.5,41.92058]
[1743440004314,7.51931909,1845.6,1845.5,47.998388]
[1743440005190,7.51931909,1845.6,1845.5,42.72258]
[1743440007517,7.51931909,1845.6,1845.5,41.92058]
[1743440007891,3.0,1845.6,1845.5,42.73078]
[1743440008097,7.51931909,1845.8,1845.7,5.41799]
[1743440008399,7.51931909,1845.8,1845.6,5.41816]
[1743440008726,3.0,1845.7,1845.5,48.14923]
[1743440008895,7.51931909,1845.6,1845.5,41.92049]
[1743440012736,7.51931909,1845.6,1845.5,42.32571984]
[1743440014135,7.51931909,1845.6,1845.5,41.92049]
[1743440019428,7.51931909,1845.6,1845.5,43.10590068]
[1743440020338,3.7634,1846.0,1845.8,5.41752]
[1743440020531,4.51931909,1845.9,1845.8,5.41752]
[1743440020727,4.51931909,1845.9,1845.8,10.69152]
[1743440021512,4.51931909,1845.9,1845.8,10.819194]
[1743440022507,4.51931909,1845.9,1845.8,5.401674]
[1743440024344,4.51931909,1845.9,1845.8,10.819374]
[1743440024912,5.4166,1846.2,1846.1,5.41682]
[1743440024913,0.7681,1846.2,1846.1,5.41682]
[1743440025120,4.51931909,1846.2,1846.1,5.54320756]
[1743440025614,4.51931909,1846.2,1846.1,0.12638756]
[1743440025849,10.33948213,1846.2,1846.1,0.12638756]
[1743440026050,15.99275434,1846.2,1846.1,0.12638756]
[1743440026263,21.40946434,1846.2,1845.8,16.10919]
[1743440026431,16.89014525,1846.2,1846.1,0.12638756]
[1743440026767,15.99275434,1846.2,1846.1,0.12638756]
[1743440026969,5.41742,1845.9,1845.6,5.274]
[1743440027249,12.93730909,1845.7,1845.6,5.274]
[1743440028141,7.93401725,1845.7,1845.6,5.274]
[1743440028352,13.35200725,1845.7,1845.6,5.274]
[1743440028517,15.30572897,1845.7,1845.6,5.274]
[1743440028717,9.88773897,1845.7,1845.6,5.274]
[1743440029017,15.30572897,1845.7,1845.6,5.274]
[1743440029239,9.88773897,1845.7,1845.6,5.274]
[1743440030151,15.30572897,1845.7,1845.6,5.274]
[1743440031959,9.88773897,1845.7,1845.6,5.274]
[1743440032528,7.51931909,1845.7,1845.6,11.51119]
[1743440032942,4.51931909,1845.8,1845.7,5.41773]
[1743440034536,4.51931909,1845.8,1845.7,5.82302721]
[1743440040128,1.23513304,1846.2,1846.0,5.41711]
[1743440040454,0.8317,1846.4,1846.3,5.41623]
[1743440040628,4.51931909,1846.4,1846.3,6.19213]
[1743440041636,4.51931909,1846.4,1846.3,5.82152721]
[1743440043238,4.51931909,1846.4,1846.3,5.41623]
[1743440043445,4.51931909,1846.4,1846.3,7.121315]
[1743440044158,4.51931909,1846.7,1846.5,5.41565]
[1743440044342,4.51931909,1846.8,1846.7,5.41506]
[1743440045259,4.51931909,1846.8,1846.6,10.68735]
[1743440045437,4.51931909,1846.8,1846.6,5.272]
[1743440045632,14.31478,1846.8,1846.7,5.272]
[1743440046021,15.10258,1846.8,1846.7,5.272]
[1743440046225,9.68779,1846.8,1846.7,5.272]
[1743440047429,15.10256,1846.8,1846.7,5.272]
[1743440047758,7.51931909,1846.8,1846.7,5.272]
[1743440048159,3.0,1846.8,1846.7,10.68706]
[1743440048327,0.05,1846.9,1846.7,10.68706]
[1743440048527,0.05,1846.9,1846.8,6.24411103]
[1743440050267,0.05,1846.9,1846.8,6.24411103]
[1743440054465,0.05,1846.9,1846.8,6.18997]
[1743440054667,0.05,1846.9,1846.8,5.41477]
[1743440056061,7.56931909,1846.9,1846.7,5.41499]
[1743440056265,4.56931909,1846.9,1846.8,5.27]
[1743440056561,4.56931909,1846.9,1846.8,10.68477]
[1743440057353,4.56931909,1846.9,1846.8,5.27]
[1743440058166,4.56931909,1846.9,1846.8,10.68477]
[1743440058663,7.56931909,1846.9,1846.8,10.68477]
[1743440059538,7.56931909,1846.9,1846.8,5.27]
[1743440059738,8.326251,1846.9,1846.8,5.27]
[1743440060339,3.0,1846.8,1846.7,5.41495]
[1743440060540,5.326251,1846.9,1846.7,10.68395]
[1743440060942,5.326251,1846.9,1846.7,16.09888]
[1743440061235,4.56931909,1846.9,1846.7,16.09888]
[1743440061436,4.56931909,1846.9,1846.7,10.82988]
[1743440061667,4.56931909,1846.9,1846.8,5.269]
[1743440063042,4.56931909,1846.9,1846.8,10.68377]
[1743440064875,7.56931909,1846.9,1846.8,10.68377]
[1743440065040,0.05,1846.9,1846.8,13.073736]
[1743440068679,0.05,1846.9,1846.8,13.47688367]
[1743440073906,5.28781909,1847.4,1847.2,5.41347]
[1743440074049,4.51931909,1847.5,1847.3,16.09448]
[1743440074361,0.7898,1847.6,1847.5,5.41271]
[1743440074362,4.51931909,1847.6,1847.5,5.41271]
[1743440074676,3.0,1847.6,1847.5,5.41271]
[1743440075259,7.51931909,1847.6,1847.4,5.41289]
[1743440075471,4.51931909,1847.5,1847.4,5.41289]
[1743440076285,0.05,1847.9,1847.7,5.41213]
[1743440076475,4.56931909,1847.9,1847.7,10.67913]
[1743440076874,3.0,1847.8,1847.7,10.67913]
[1743440082392,3.0,1847.8,1847.7,5.267]
[1743440082593,3.75693191,1847.8,1847.7,5.267]
[1743440083089,3.0,1847.8,1847.7,11.45813]
[1743440083289,0.05,1847.9,1847.8,5.41184]
[1743440086894,4.56931909,1847.9,1847.8,10.67684]
[1743440088173,4.56931909,1847.9,1847.8,5.41184]
[1743440088562,0.05,1847.9,1847.8,10.67684]
[1743440088798,4.56931909,1847.9,1847.8,10.67684]
[1743440089000,4.56931909,1847.9,1847.8,5.265]
[1743440089298,4.56931909,1847.9,1847.8,10.67684]
[1743440089667,4.56931909,1847.9,1847.8,5.41184]
[1743440089863,4.56931909,1847.9,1847.8,10.67684]
[1743440090367,4.56931909,1847.9,1847.8,5.265]
[1743440090597,7.56931909,1847.9,1847.8,10.67684]
[1743440090797,7.56931909,1847.9,1847.8,5.265]
[1743440093188,12.98085909,1847.9,1847.8,5.265]
[1743440093508,14.4545895,1847.9,1847.8,5.265]
[1743440093673,3.0,1847.8,1847.7,5.265]
[1743440093988,9.19374,1847.8,1847.4,36.62998]
[1743440094195,5.41221,1847.7,1847.6,5.264]
[1743440095001,0.7819,1847.8,1847.7,5.41213]
[1743440095209,3.05,1847.9,1847.7,5.41213]
[1743440095501,4.51931909,1847.8,1847.7,5.41201]
[1743440096295,4.51931909,1847.8,1847.6,10.67638]
[1743440096492,4.51931909,1847.8,1847.7,5.41213]
[1743440096673,4.51931909,1847.8,1847.6,10.6763]
[1743440098073,3.0,1847.7,1847.6,5.264]
[1743440098470,3.0,1847.7,1847.6,10.67642]
[1743440098703,3.0,1847.7,1847.6,5.264]
[1743440099290,6.92886191,1847.7,1847.4,31.217]
[1743440099490,7.51931909,1847.5,1847.4,31.217]
[1743440099696,13.69662909,1847.5,1847.4,31.217]
[1743440100280,0.7646,1847.1,1846.7,37.40941]
[1743440100506,4.51931909,1846.8,1846.7,31.208]
[1743440100804,7.51931909,1846.8,1846.7,36.472]
[1743440101610,7.51931909,1846.8,1846.7,41.88706]
[1743440101787,7.51931909,1846.8,1846.7,36.472]
[1743440103889,8.34341909,1846.8,1846.7,36.472]
[1743440104634,13.75818909,1846.8,1846.7,31.208]
[1743440105290,15.74268211,1846.8,1846.7,31.208]
[1743440105606,8.41533,1846.7,1846.5,5.265]
[1743440105808,4.51931909,1846.6,1846.5,5.265]
[1743440106894,12.93466909,1846.6,1846.5,5.265]
[1743440107417,7.51931909,1846.6,1846.5,5.265]
[1743440108616,3.0,1846.6,1846.5,12.535936]
[1743440109195,3.0,1846.6,1846.5,11.46785]
[1743440109396,3.0,1846.6,1846.5,10.68065]
[1743440110512,3.0,1846.6,1846.5,11.45605]
[1743440112146,4.51931909,1847.0,1846.7,5.41506]
[1743440112325,4.51931909,1847.0,1846.9,5.41447]
[1743440112495,7.51931909,1847.0,1846.9,10.68047]
[1743440113820,3.0,1846.9,1846.7,31.222]
[1743440113995,3.0,1846.9,1846.8,5.266]
[1743440114200,7.51931909,1846.9,1846.8,5.266]
[1743440114523,12.93378909,1846.9,1846.8,5.266]
[1743440114720,7.51931909,1846.9,1846.8,5.266]
[1743440115317,8.96932219,1846.9,1846.8,5.266]
[1743440116099,14.38392219,1846.9,1846.7,36.488]
[1743440117994,3.0,1846.5,1846.2,6.18531]
[1743440118199,3.0,1846.5,1846.2,16.86773]
[1743440118200,4.51931909,1846.3,1846.2,16.86773]
[1743440118620,4.51931909,1846.3,1846.2,18.554503]
[1743440120223,4.51931909,1846.3,1846.2,10.83283]
[1743440120427,4.51931909,1846.3,1846.2,16.09883]
[1743440120801,8.32641909,1846.3,1846.1,5.41678]
[1743440121001,5.32641909,1846.3,1846.2,5.41653]
[1743440121201,4.51931909,1846.3,1846.2,5.41653]
[1743440121408,4.51931909,1846.3,1846.1,10.68271]
[1743440121611,0.7875,1846.7,1846.5,5.41565]
[1743440121812,3.0,1846.8,1846.5,5.266]
[1743440122014,0.8114,1847.1,1846.8,5.41477]
[1743440122210,7.51931909,1846.9,1846.8,5.41477]
[1743440122411,7.51931909,1846.9,1846.6,5.41533]
[1743440122698,7.51931909,1846.7,1846.6,6.563343]
[1743440123037,7.51931909,1846.7,1846.5,10.6816]
[1743440123534,7.51931909,1846.7,1846.5,10.68163]
[1743440123931,3.0,1846.6,1846.5,5.266]
[1743440127739,3.40600329,1846.6,1846.5,5.266]
[1743440128541,4.51931909,1846.7,1846.5,10.68165]
[1743440128918,4.51931909,1846.7,1846.5,5.266]
[1743440129223,3.0,1846.6,1846.5,5.266]
[1743440129905,3.0,1846.4,1846.3,31.225]
[1743440130104,7.51931909,1846.4,1846.3,36.491]
[1743440133748,7.51931909,1846.4,1846.3,41.90723]
[1743440133929,7.51931909,1846.4,1846.3,42.66993]
[1743440134837,7.51931909,1846.4,1846.3,47.47856]
[1743440136812,4.51931909,1846.6,1846.5,5.41565]
[1743440137113,4.51931909,1846.6,1846.5,6.19815]
[1743440137529,7.51931909,1846.6,1846.5,6.19815]
[1743440137938,7.51931909,1846.6,1846.5,6.60142452]
[1743440138143,7.51931909,1846.6,1846.5,7.80314797]
[1743440139166,7.51931909,1846.6,1846.5,7.39987345]
[1743440140267,3.0,1846.6,1846.5,7.39987345]
[1743440140559,3.0,1846.6,1846.5,6.19815]
[1743440140859,3.0,1846.6,1846.5,10.68065]
[1743440141062,3.0,1846.6,1846.5,5.265]
[1743440142036,3.0,1846.5,1846.3,36.64117]
[1743440142235,7.51931909,1846.5,1846.4,5.265]
[1743440144134,12.93497909,1846.5,1846.2,5.41637]
[1743440144335,4.51931909,1846.3,1846.1,42.06149]
[1743440144580,4.51931909,1846.3,1846.2,5.265]
[1743440144776,4.51931909,1846.3,1846.2,10.68153]
[1743440145337,4.51931909,1846.3,1846.2,5.265]
[1743440145533,4.51931909,1846.3,1846.1,31.228]
[1743440145838,5.41708,1846.1,1845.6,5.41811]
[1743440146060,7.51931909,1845.8,1845.7,6.07019762]
[1743440146569,7.51931909,1845.8,1845.7,0.80519762]
[1743440146772,14.02824518,1845.8,1845.7,6.07019762]
[1743440147298,14.02824518,1845.8,1845.7,0.80519762]
[1743440147484,5.41799,1845.7,1845.6,5.265]
[1743440147779,9.93730909,1845.7,1845.6,5.265]
[1743440148000,3.0,1845.6,1845.4,36.494]
[1743440148183,4.51931909,1845.5,1845.4,36.494]
[1743440148355,4.51931909,1845.5,1845.4,41.91287]
[1743440151680,4.51931909,1845.5,1845.4,36.494]
[1743440152073,7.51931909,1845.5,1845.4,31.229]
[1743440152391,14.98359391,1845.5,1845.4,36.495]
[1743440152552,14.98359391,1845.5,1845.4,31.229]
[1743440153460,9.56501391,1845.5,1845.4,31.229]
[1743440153671,7.51931909,1845.5,1845.4,31.229]
[1743440153872,12.93789909,1845.5,1845.4,31.229]
[1743440155188,7.51931909,1845.5,1845.4,31.229]
[1743440157494,13.72849909,1845.5,1845.4,31.229]
[1743440160208,8.30991909,1845.5,1845.4,31.229]
[1743440160499,7.51931909,1845.5,1845.4,31.229]
[1743440160701,3.0,1845.5,1845.4,36.64787]
[1743440160905,3.0,1845.5,1845.4,10.152262]
[1743440161074,3.0,1845.5,1845.4,5.41887]
[1743440161592,4.51931909,1845.6,1845.5,6.20308]
[1743440161892,7.51931909,1845.6,1845.5,6.20308]
[1743440162096,7.51931909,1845.6,1845.4,5.41876]
[1743440162394,7.51931909,1845.6,1845.5,5.267]
[1743440162696,7.51931909,1845.6,1845.5,10.68558]
[1743440163294,7.51931909,1845.6,1845.5,12.296016]
[1743440164589,7.51931909,1845.6,1845.5,13.099416]
[1743440166282,7.51931909,1845.6,1845.5,6.0704]
[1743440166495,7.51931909,1845.6,1845.5,5.266]
[1743440166796,7.51931909,1845.6,1845.5,10.68458]
[1743440169197,7.51931909,1845.6,1845.5,5.266]
[1743440170178,3.0,1845.5,1845.3,10.83804]
[1743440170397,4.51931909,1845.4,1845.3,10.83804]
[1743440170706,9.93818909,1845.4,1845.1,37.54596]
[1743440170998,4.51931909,1845.2,1845.1,36.71556]
[1743440171171,4.51931909,1845.2,1845.1,41.98156]
[1743440171367,4.51931909,1845.2,1845.1,36.562]
[1743440171563,4.51931909,1845.2,1845.1,41.98176]
[1743440174100,4.51931909,1845.2,1845.1,36.562]
[1743440175899,10.932636,1845.2,1845.1,31.296]
[1743440177402,11.34653995,1845.2,1845.1,31.296]
[1743440177813,14.34653995,1845.2,1845.1,31.296]
[1743440179815,14.89653995,1845.2,1845.1,31.296]
[1743440180111,6.17151,1844.7,1844.3,6.172]
[1743440180433,6.17151,1844.7,1844.2,5.42235]
[1743440180434,3.0,1844.4,1844.2,5.266]
[1743440180930,4.51931909,1844.3,1844.2,10.6884]
[1743440181913,12.94142909,1844.3,1844.2,5.266]
[1743440182414,7.51931909,1844.3,1844.1,0.05]
[1743440182585,7.51931909,1844.3,1844.2,5.267]
[1743440182914,12.94142909,1844.3,1844.2,5.267]
[1743440183215,7.51931909,1844.3,1844.2,5.267]
[1743440183397,7.9211077,1844.3,1844.2,5.267]
[1743440183591,7.51931909,1844.3,1844.2,10.6894]
[1743440184489,7.51931909,1844.3,1844.2,5.267]
[1743440184689,7.51931909,1844.3,1844.1,5.47257]
[1743440184690,13.49142909,1844.3,1844.1,0.05]
[1743440184913,14.917282,1844.3,1844.1,5.318]
[1743440185119,5.4224,1844.2,1844.1,5.318]
[1743440185917,14.28181909,1844.2,1844.1,0.05]
[1743440186511,14.55835236,1844.2,1844.1,0.05]
[1743440186717,17.6931388,1844.2,1844.1,0.05]
[1743440187089,12.89728644,1844.2,1844.1,0.05]
[1743440187317,7.47488644,1844.2,1844.1,0.05]
[1743440187518,10.03450976,1844.2,1844.1,0.05]
[1743440191119,14.55382885,1844.2,1844.1,0.05]
[1743440191519,14.55382885,1844.2,1843.9,31.249]
[1743440191520,6.17889,1844.0,1843.9,31.249]
[1743440191821,24.95944718,1844.0,1843.9,31.249]
[1743440192116,27.9976729,1844.0,1843.9,31.249]
[1743440192316,26.2390929,1844.0,1843.9,31.249]
[1743440192529,3.55,1843.7,1843.4,6.25514]
[1743440192731,7.51931909,1843.5,1843.4,6.25514]
[1743440193022,8.06931909,1843.5,1843.4,11.52314]
[1743440193200,3.0,1843.5,1843.4,13.217955]
[1743440195288,0.40631244,1843.9,1843.8,5.42358]
[1743440195491,0.40631244,1843.9,1843.8,5.269]
[1743440195492,4.51931909,1843.9,1843.8,5.269]
[1743440195819,7.51931909,1843.9,1843.8,5.269]
[1743440196021,8.06931909,1843.9,1843.8,5.269]
[1743440196323,9.92548191,1843.9,1843.8,5.269]
[1743440197298,15.34876191,1843.9,1843.8,5.269]
[1743440197595,3.55,1843.8,1843.6,10.6931]
[1743440197919,5.06931909,1843.7,1843.6,10.6931]
[1743440198715,5.06931909,1843.7,1843.6,5.269]
[1743440199019,8.876251,1843.7,1843.6,5.269]
[1743440199223,8.876251,1843.7,1843.5,10.84865]
[1743440199423,8.876251,1843.7,1843.5,16.11762]
[1743440199592,8.876251,1843.7,1843.5,10.6933]
[1743440199793,8.876251,1843.7,1843.6,5.42417]
[1743440199994,8.876251,1843.7,1843.5,10.6933]
[1743440200295,8.876251,1843.7,1843.5,16.11761]
[1743440200519,8.876251,1843.7,1843.5,10.6933]
[1743440201217,8.06931909,1843.7,1843.6,5.42417]
[1743440201896,8.06931909,1843.7,1843.6,6.18857]
[1743440201897,7.51931909,1843.7,1843.6,6.18857]
[1743440205998,7.51931909,1843.7,1843.6,5.42417]
[1743440206503,7.51931909,1843.7,1843.5,10.6933]
[1743440206504,3.0,1843.6,1843.5,10.6933]
[1743440206710,3.0,1843.6,1843.4,32.0896]
[1743440206905,8.36931909,1843.5,1843.4,31.275]
[1743440207100,8.36931909,1843.5,1843.4,36.544]
[1743440208124,8.36931909,1843.5,1843.4,31.275]
[1743440210406,8.36931909,1843.5,1843.3,10.69388]
[1743440210833,4.38693191,1843.4,1843.3,5.269]
[1743440211710,4.38693191,1843.4,1843.3,10.69405]
[1743440212414,3.0,1843.4,1843.3,10.69405]
[1743440213029,3.95068437,1843.4,1843.3,5.269]
[1743440213412,0.55,1843.3,1843.2,10.69518]
[1743440213624,5.06931909,1843.3,1843.2,10.69518]
[1743440214846,4.51931909,1843.3,1843.2,10.69518]
[1743440215240,5.86131944,1843.3,1843.2,10.69518]
[1743440218226,3.0,1843.2,1843.1,5.47551]
[1743440218535,3.0,1843.2,1843.1,10.74551]
[1743440220253,3.0,1843.2,1843.1,5.32]
[1743440220444,3.55,1843.2,1843.1,0.05]
[1743440220645,4.43613194,1843.2,1843.1,5.32]
[1743440221430,4.43613194,1843.2,1843.1,10.74564]
[1743440221640,3.55,1843.2,1843.1,10.74564]
[1743440222273,3.55,1843.2,1843.1,5.32]
[1743440222760,3.55,1843.2,1843.1,0.05]
[1743440222930,8.97534,1843.2,1843.1,0.05]
[1743440223133,3.55,1843.2,1843.1,5.47564]
[1743440223447,3.0,1843.2,1843.1,5.47564]
[1743440226068,0.40068437,1843.4,1843.3,5.42505]
[1743440226238,7.85938753,1843.4,1843.3,5.42505]
[1743440226859,4.51931909,1843.4,1843.3,5.42505]
[1743440227833,4.9329346,1843.4,1843.3,5.42505]
[1743440228250,4.9329346,1843.4,1843.1,6.25489]
[1743440228251,0.55,1843.3,1843.1,6.25489]
[1743440228433,4.51931909,1843.2,1843.1,6.25489]
[1743440229164,0.41361551,1843.4,1843.3,5.42505]
[1743440229337,4.51931909,1843.4,1843.3,5.42505]
[1743440229534,5.93317101,1843.4,1843.2,5.42529]
[1743440229868,0.55,1843.3,1843.2,3.0]
[1743440231164,0.55,1843.3,1843.2,8.42534]
[1743440232145,5.4812391,1843.4,1843.3,5.42505]
[1743440232467,4.9312391,1843.4,1843.3,5.42505]
[1743440232647,4.51931909,1843.6,1843.4,5.42475]
[1743440232964,4.51931909,1843.6,1843.5,10.69346]
[1743440234371,4.51931909,1843.6,1843.4,3.0]
[1743440234550,4.51931909,1843.6,1843.4,8.42474]
[1743440235170,4.51931909,1843.6,1843.5,5.42446]
[1743440235352,5.052351,1843.6,1843.5,5.42446]
[1743440235546,5.052351,1843.6,1843.4,8.4246]
[1743440235754,5.052351,1843.6,1843.4,3.0]
[1743440236267,5.052351,1843.6,1843.4,8.42466]
[1743440236473,5.052351,1843.6,1843.4,5.42466]
[1743440236641,5.052351,1843.6,1843.4,5.42465]
[1743440236840,5.602351,1843.6,1843.5,5.42446]
[1743440237070,5.602351,1843.6,1843.4,5.42465]
[1743440237441,0.5602351,1843.5,1843.4,5.42465]
[1743440237666,0.5602351,1843.5,1843.3,10.694]
[1743440237869,4.51931909,1843.4,1843.3,10.694]
[1743440238070,4.91782711,1843.4,1843.3,5.269]
[1743440238274,0.55,1843.3,1843.2,5.269]
[1743440238648,4.91782711,1843.4,1843.2,10.69434]
[1743440238970,4.91782711,1843.4,1843.3,5.42505]
[1743440239374,4.51931909,1843.4,1843.3,6.17715]
[1743440240071,0.41157319,1843.9,1843.3,0.7521]
[1743440240277,9.94238909,1844.0,1843.5,5.42446]
[1743440240278,4.51931909,1843.6,1843.5,5.42446]
[1743440242148,4.92556671,1843.6,1843.5,5.42446]
[1743440242344,4.51931909,1843.6,1843.5,5.42446]
[1743440243371,4.51931909,1843.6,1843.5,6.19136]
[1743440246074,7.51931909,1843.6,1843.5,6.19136]
[1743440249367,4.51931909,1843.6,1843.5,7.352959]
[1743440250083,4.51931909,1843.6,1843.5,6.19136]
[1743440250577,4.51931909,1843.6,1843.5,5.42446]
[1743440255084,7.51931909,1843.6,1843.5,5.42446]
[1743440258663,3.0,1843.5,1843.4,5.42475]
[1743440258866,4.51931909,1843.6,1843.4,5.42475]
[1743440259191,5.896441,1843.6,1843.5,5.267]
[1743440259690,3.0,1843.5,1843.4,16.11624]
[1743440259885,3.0,1843.5,1843.4,10.69161]
[1743440260071,3.0,1843.5,1843.4,16.11623]
[1743440264400,3.0,1843.5,1843.4,16.5211001]
[1743440264768,3.55,1843.5,1843.4,11.0964801]
[1743440264979,4.35693191,1843.5,1843.4,11.0964801]
[1743440265894,3.80693191,1843.5,1843.4,10.69161]
[1743440266092,3.0,1843.5,1843.4,10.69161]
[1743440267089,5.06931909,1843.7,1843.6,5.42417]
[1743440268565,0.41665987,1843.8,1843.7,5.42387]
[1743440268788,4.51931909,1843.9,1843.8,6.21468]
[1743440268987,4.971251,1843.9,1843.8,10.68958]
[1743440269506,4.51931909,1843.9,1843.8,10.68958]
[1743440270097,3.41282684,1844.0,1843.9,5.42328]
[1743440270404,4.51931909,1844.1,1844.0,5.42299]
[1743440270783,7.51931909,1844.1,1844.0,5.42299]
[1743440271509,4.51931909,1844.1,1844.0,5.42299]
[1743440271703,5.15923121,1844.1,1844.0,5.42299]
[1743440272303,3.0,1844.0,1843.8,10.68938]
[1743440272600,4.51931909,1843.9,1843.8,10.68938]
[1743440273574,0.55,1843.8,1843.7,5.266]
[1743440273775,2.03179391,1843.8,1843.7,5.266]
[1743440275315,0.55,1843.8,1843.7,5.266]
[1743440277018,0.55,1843.8,1843.7,10.68987]
[1743440277178,5.84461909,1843.9,1843.8,5.42358]
[1743440277380,4.51931909,1843.9,1843.7,10.68987]
[1743440278378,5.06787988,1843.9,1843.7,10.68987]
[1743440279219,0.55,1843.8,1843.7,5.266]
[1743440279588,0.55,1843.8,1843.7,10.68987]
[1743440280478,0.55,1843.8,1843.7,5.266]
[1743440280889,0.55,1843.8,1843.6,5.42403]
[1743440281098,4.51931909,1843.7,1843.6,10.68903]
[1743440281301,4.51931909,1843.7,1843.6,10.68917]
[1743440281544,5.107601,1843.7,1843.5,31.277]
[1743440281709,4.3635,1843.6,1843.5,36.542]
[1743440282238,9.78767,1843.6,1843.5,31.277]
[1743440282744,9.78767,1843.6,1843.2,5.265]
[1743440282893,5.06931909,1843.3,1843.2,5.265]
[1743440283744,5.89041909,1843.3,1843.2,5.265]
[1743440284249,5.06931909,1843.3,1843.2,10.69034]
[1743440284397,4.51931909,1843.3,1843.2,10.69034]
[1743440284844,4.51931909,1843.3,1843.2,5.265]
[1743440285397,5.521251,1843.3,1843.2,5.265]
[1743440286439,0.55,1843.2,1843.1,5.315]
[1743440287725,0.95175879,1843.2,1843.1,5.315]
[1743440288238,5.47107788,1843.2,1843.1,5.315]
[1743440289718,0.95175879,1843.2,1843.1,5.315]
[1743440289919,5.47107788,1843.2,1843.1,10.74064]
[1743440290258,5.47107788,1843.2,1843.1,11.49114]
[1743440290615,4.51931909,1843.3,1843.1,6.0655]
[1743440292741,4.51931909,1843.6,1843.5,5.265]
[1743440292945,4.51931909,1843.6,1843.5,10.68946]
[1743440293330,4.51931909,1843.6,1843.5,5.265]
[1743440293534,5.38580809,1843.6,1843.5,5.265]
[1743440295022,5.38580809,1843.6,1843.5,10.68946]
[1743440295228,5.48387618,1843.6,1843.5,10.68946]
[1743440295541,5.48387618,1843.6,1843.5,5.265]
[1743440295878,14.73084618,1843.6,1843.5,5.265]
[1743440296078,0.55,1843.4,1843.2,5.265]
[1743440296231,8.06931909,1843.3,1843.2,5.265]
[1743440300962,3.0,1843.3,1843.2,11.49344]
[1743440301126,4.93387618,1843.6,1843.4,5.42457]
[1743440301331,4.93387618,1843.6,1843.5,5.42446]
[1743440301332,4.51931909,1843.6,1843.5,5.42446]
[1743440301531,5.06931909,1843.6,1843.5,5.42446]
[1743440302245,0.55,1843.6,1843.5,6.24676]
[1743440302564,4.51931909,1843.7,1843.5,11.67122]
[1743440302764,5.271251,1843.7,1843.6,5.265]
[1743440302962,12.036521,1843.7,1843.3,0.8223]
[1743440303167,4.51931909,1843.4,1843.3,6.24717]
[1743440303464,4.51931909,1843.4,1843.3,11.51217]
[1743440304537,0.55,1843.5,1843.4,5.42465]
[1743440304874,4.51931909,1843.6,1843.5,5.42446]
[1743440305056,5.06931909,1843.6,1843.5,5.42446]
[1743440305256,0.55,1843.5,1843.4,5.42465]
[1743440305466,0.55,1843.5,1843.4,5.265]
[1743440305839,0.55,1843.5,1843.2,6.24752]
[1743440306060,5.06931909,1843.4,1843.3,5.265]
[1743440306368,5.06931909,1843.4,1843.3,10.69005]
[1743440306848,0.55,1843.4,1843.3,10.69005]
[1743440307359,5.06931909,1843.4,1843.3,10.69005]
[1743440308247,0.55,1843.4,1843.3,5.265]
[1743440308576,5.02854065,1844.3,1843.3,8.06535864]
[1743440308740,5.02854065,1844.3,1843.1,5.47547]
[1743440308741,4.51931909,1843.9,1843.6,5.42406]
[1743440309066,4.51931909,1843.9,1843.7,5.42367]
[1743440309457,4.51931909,1843.9,1843.7,5.42377]
[1743440309768,5.42252,1844.2,1843.5,0.7658]
[1743440309769,4.51931909,1844.1,1843.9,5.42322]
[1743440310067,5.01238628,1844.1,1843.8,10.68854]
[1743440310236,3.0,1844.0,1843.8,10.68854]
[1743440310435,5.01238628,1844.1,1843.8,10.68854]
[1743440310436,8.06931909,1843.9,1843.8,5.265]